bitfinex/quotes_BTCUSD_20241130
["timestamp","ask_amount","ask_price","bid_price","bid_amount"]
[1732992447863,0.0802,96989.0,96988.0,0.38984252]
[1732992448565,0.0802,96989.0,96988.0,0.16569631]
[1732992448784,0.183304,96989.0,96988.0,0.42336795]
[1732992449010,0.232704,96989.0,96988.0,0.01569631]
[1732992449230,0.232704,96989.0,96988.0,0.01310527]
[1732992449460,0.232704,96989.0,96988.0,0.28929624]
[1732992449668,0.232704,96989.0,96988.0,0.00810527]
[1732992449922,0.232704,96989.0,96988.0,0.002716]
[1732992449923,0.231704,96989.0,96988.0,0.002716]
[1732992450617,0.236704,96989.0,96988.0,0.002716]
[1732992452172,0.234704,96989.0,96988.0,0.002716]
[1732992452576,0.2355678,96989.0,96988.0,0.002716]
[1732992452578,0.2415678,96989.0,96988.0,0.003716]
[1732992452786,0.2325678,96989.0,96988.0,0.02310527]
[1732992452981,0.2365678,96989.0,96988.0,0.00010527]
[1732992453211,0.2455678,96989.0,96988.0,0.00110527]
[1732992464138,0.2455678,96989.0,96988.0,0.02583227]
[1732992474691,0.34841301,96989.0,96988.0,0.00283227]
[1732992475195,0.34841301,96989.0,96988.0,0.03283227]
[1732992476093,0.33541301,96989.0,96988.0,0.03183227]
[1732992476308,0.34441301,96989.0,96988.0,0.03283227]
[1732992476520,0.34841301,96989.0,96988.0,0.03283227]
[1732992476731,0.33841301,96989.0,96988.0,0.03283227]
[1732992477176,0.32941301,96989.0,96988.0,0.03183227]
[1732992477390,0.33841301,96989.0,96988.0,0.03283227]
[1732992477598,0.33441301,96989.0,96988.0,0.03283227]
[1732992478032,0.34041301,96989.0,96988.0,0.03283227]
[1732992478879,0.33141301,96989.0,96988.0,0.03183227]
[1732992479088,0.33441301,96989.0,96988.0,0.03283227]
[1732992479532,0.32941301,96989.0,96988.0,0.03183227]
[1732992479755,0.33841301,96989.0,96988.0,0.03283227]
[1732992479964,0.33441301,96989.0,96988.0,0.03283227]
[1732992480180,0.34041301,96989.0,96988.0,0.03283227]
[1732992480601,0.32541301,96989.0,96988.0,0.03183227]
[1732992480813,0.33441301,96989.0,96988.0,0.03283227]
[1732992481012,0.34241301,96989.0,96988.0,0.03383227]
[1732992483643,0.2395678,96989.0,96988.0,0.03383227]
[1732992484296,0.2395678,96989.0,96988.0,0.05683227]
[1732992485648,0.1364638,96989.0,96988.0,0.05683227]
[1732992485855,0.1901678,96989.0,96988.0,0.05683227]
[1732992486061,0.1901678,96989.0,96988.0,0.0597867]
[1732992486493,0.1209678,96989.0,96988.0,0.05683227]
[1732992487352,0.14123405,96989.0,96988.0,0.0597867]
[1732992490694,0.03813005,96989.0,96988.0,0.0597867]
[1732992490913,0.0178638,96989.0,96988.0,0.0597867]
[1732992491337,0.0178638,96989.0,96988.0,0.1628917]
[1732992492059,0.0098638,96989.0,96988.0,0.1618917]
[1732992492267,0.0098638,96989.0,96988.0,0.1608917]
[1732992492268,0.0008638,96989.0,96988.0,0.1608917]
[1732992492481,0.0138638,96989.0,96988.0,0.1618917]
[1732992492718,0.0048638,96989.0,96988.0,0.1608917]
[1732992492915,0.0008638,96989.0,96988.0,0.1608917]
[1732992493121,0.0048638,96989.0,96988.0,0.1608917]
[1732992493346,0.0018638,96989.0,96988.0,0.1608917]
[1732992493588,0.0008638,96989.0,96988.0,0.1608917]
[1732992493801,0.0028638,96989.0,96988.0,0.1608917]
[1732992494010,0.0008638,96989.0,96988.0,0.1608917]
[1732992494915,0.1039678,96989.0,96988.0,0.0577867]
[1732992495133,0.1039678,96989.0,96988.0,0.05483227]
[1732992495555,0.0038638,96989.0,96988.0,0.05483227]
[1732992495770,0.0008638,96989.0,96988.0,0.05483227]
[1732992496198,0.0028638,96989.0,96988.0,0.0577867]
[1732992496434,0.1039678,96989.0,96988.0,0.05483227]
[1732992496641,0.1079678,96989.0,96988.0,0.05483227]
[1732992496851,0.1079678,96989.0,96988.0,0.05777821]
[1732992497069,0.0068638,96989.0,96988.0,0.05777821]
[1732992497489,0.0028638,96989.0,96988.0,0.05777821]
[1732992498374,0.0008638,96989.0,96988.0,0.05777821]
[1732992498815,0.1059678,96989.0,96988.0,0.05777821]
[1732992499024,0.1109678,96989.0,96988.0,0.05777821]
[1732992499232,0.1059678,96989.0,96988.0,0.05777821]
[1732992499422,0.1099678,96989.0,96988.0,0.05777821]
[1732992507788,0.2332678,96989.0,96988.0,0.05777821]
[1732992508670,0.1099678,96989.0,96988.0,0.05777821]
[1732992509322,0.1099678,96989.0,96988.0,0.05777474]
[1732992510215,0.0068638,96989.0,96988.0,0.05777474]
[1732992511741,0.0068638,96989.0,96988.0,0.16087974]
[1732992512157,0.0068638,96989.0,96988.0,0.05777474]
[1732992512394,0.0068638,96989.0,96988.0,0.16087974]
[1732992514364,0.0028638,96989.0,96988.0,0.16087974]
[1732992514835,0.0038638,96989.0,96988.0,0.16087974]
[1732992515253,0.0028638,96989.0,96988.0,0.16087974]
[1732992515899,0.0008638,96989.0,96988.0,0.16087974]
[1732992516296,0.0018638,96989.0,96988.0,0.16087974]
[1732992516534,0.0008638,96989.0,96988.0,0.16087974]
[1732992522330,0.0008638,96989.0,96988.0,0.38914982]
[1732992522465,0.0008638,96989.0,96988.0,0.38732495]
[1732992523162,0.0008638,96989.0,96988.0,0.39132495]
[1732992523583,0.0008638,96989.0,96988.0,0.39632495]
[1732992525397,0.0008638,96989.0,96988.0,0.55632495]
[1732992526849,1.4637565,97000.0,96999.0,0.126093]
[1732992527067,1.4637565,97000.0,96999.0,0.27725452]
[1732992528718,1.4645872,97000.0,96999.0,0.27725452]
[1732992529133,1.4655872,97000.0,96999.0,0.27725452]
[1732992529954,1.4645872,97000.0,96999.0,0.27725452]
[1732992530813,1.4645872,97000.0,96999.0,0.28125452]
[1732992531648,1.4654513,97000.0,96999.0,0.28125452]
[1732992532090,1.4654513,97000.0,96999.0,0.28025452]
[1732992532780,1.4654513,97000.0,96999.0,0.28225452]
[1732992533822,1.4654513,97000.0,96999.0,0.29339166]
[1732992534279,1.46203628,97000.0,96999.0,0.29339166]
[1732992534726,1.46203628,97000.0,96999.0,0.37059166]
[1732992541183,1.46203628,97000.0,96999.0,0.52059166]
[1732992544042,1.46203628,97000.0,96999.0,0.53059166]
[1732992544689,1.46203628,97000.0,96999.0,0.52759166]
[1732992545129,1.46303628,97000.0,96999.0,0.53359166]
[1732992545577,1.46303628,97000.0,96999.0,0.53859166]
[1732992546013,1.46303628,97000.0,96999.0,0.53359166]
[1732992546202,1.46203628,97000.0,96999.0,0.53159166]
[1732992546617,1.46303628,97000.0,96999.0,0.54059166]
[1732992548590,1.46303628,97000.0,96999.0,0.40799166]
[1732992553634,1.43303628,97000.0,96999.0,0.25799166]
[1732992554351,1.43303628,97000.0,96999.0,0.25971966]
[1732992559844,1.48043628,97000.0,96999.0,0.25971966]
[1732992562679,1.43303628,97000.0,96999.0,0.25971966]
[1732992565460,1.43303628,97000.0,96999.0,0.57180215]
[1732992566506,1.43303628,97000.0,96999.0,0.25971966]
[1732992572041,1.43303628,97000.0,96999.0,0.03078145]
[1732992572286,1.55543628,97000.0,96999.0,0.03078145]
[1732992572518,1.55543628,97000.0,96999.0,0.03076213]
[1732992572760,1.65852828,97000.0,96999.0,0.03076213]
[1732992572984,1.65852828,97000.0,96999.0,0.02786514]
[1732992573210,1.55543628,97000.0,96999.0,0.02186514]
[1732992573420,1.65852828,97000.0,96999.0,0.04486514]
[1732992573643,1.65752828,97000.0,96999.0,0.03986514]
[1732992573854,1.55443628,97000.0,96999.0,0.04486514]
[1732992574296,1.55443628,97000.0,96999.0,0.14795814]
[1732992574511,1.55443628,97000.0,96999.0,0.1507812]
[1732992582756,1.43203628,97000.0,96999.0,0.1507812]
[1732992590917,1.43203628,97000.0,96999.0,0.25362641]
[1732992591548,1.43120558,97000.0,96999.0,0.25362641]
[1732992593551,1.43120558,97000.0,96999.0,0.56582898]
[1732992595619,1.43120558,97000.0,96999.0,0.25362641]
[1732992608458,1.42620558,97000.0,96999.0,0.25362641]
[1732992610747,1.42620558,97000.0,96999.0,0.33612641]
[1732992611161,1.42620558,97000.0,96999.0,0.56515463]
[1732992611990,1.42620558,97000.0,96999.0,0.56115463]
[1732992612193,1.42620558,97000.0,96999.0,0.56815463]
[1732992612644,1.42620558,97000.0,96999.0,0.56115463]
[1732992613056,1.42620558,97000.0,96999.0,0.55615463]
[1732992613448,1.42620558,97000.0,96999.0,0.57215463]
[1732992631417,1.42620558,97000.0,96999.0,0.48965463]
[1732992635317,1.42620558,97000.0,96999.0,0.49965463]
[1732992635720,1.42620558,97000.0,96999.0,0.50965463]
[1732992636295,1.42620558,97000.0,96999.0,1.00981388]
[1732992636518,1.42620558,97000.0,96999.0,0.50965463]
[1732992639046,1.42620558,97000.0,96999.0,1.00986408]
[1732992639290,1.42620558,97000.0,96999.0,1.05110107]
[1732992639731,1.42620558,97000.0,96999.0,0.55089563]
[1732992640539,1.42620558,97000.0,96999.0,1.0510878]
[1732992641469,1.42620558,97000.0,96999.0,1.0032878]
[1732992641912,1.42620558,97000.0,96999.0,0.50309563]
[1732992644732,1.42620558,97000.0,96999.0,1.0032878]
[1732992645390,1.42620558,97000.0,96999.0,0.50309563]
[1732992645598,1.42620558,97000.0,96999.0,1.0032878]
[1732992646023,1.42620558,97000.0,96999.0,0.50309563]
[1732992646237,1.42620558,97000.0,96999.0,1.05088293]
[1732992646451,1.42620558,97000.0,96999.0,0.55049563]
[1732992646867,1.40319704,97000.0,96999.0,0.55049563]
[1732992649356,1.40319704,97000.0,96999.0,1.05087549]
[1732992651306,1.40319704,97000.0,96999.0,0.55049563]
[1732992651958,1.40319704,97000.0,96999.0,1.05105216]
[1732992652171,1.40319704,97000.0,96999.0,1.00365216]
[1732992652398,1.40319704,97000.0,96999.0,0.50309563]
[1732992653958,1.40319704,97000.0,96999.0,0.46723049]
[1732992654188,1.40319704,97000.0,96999.0,0.47796386]
[1732992654623,1.39907484,97000.0,96999.0,0.47796386]
[1732992655794,1.39907484,97000.0,96999.0,0.46796386]
[1732992655970,1.39907484,97000.0,96999.0,0.49096386]
[1732992656833,1.39907484,97000.0,96999.0,0.991633]
[1732992657447,1.37507484,97000.0,96999.0,0.49096386]
[1732992657630,1.37507484,97000.0,96999.0,0.53726386]
[1732992658088,1.37507484,97000.0,96999.0,0.53899206]
[1732992658321,1.337896,97000.0,96999.0,0.53899206]
[1732992662872,1.33347199,97000.0,96999.0,0.53899206]
[1732992663745,1.33347199,97000.0,96999.0,0.49269206]
[1732992666633,1.30666027,97000.0,96999.0,0.49269206]
[1732992666845,1.28266027,97000.0,96999.0,0.49269206]
[1732992670766,1.26411087,97000.0,96999.0,0.49269206]
[1732992683537,1.246592,97000.0,96999.0,0.49269206]
[1732992684909,1.12597813,97000.0,96999.0,0.50269206]
[1732992685545,1.11500813,97000.0,96999.0,0.50269206]
[1732992691132,1.11203217,97000.0,96999.0,0.50269206]
[1732992694226,1.11203217,97000.0,96999.0,0.46145106]
[1732992703703,1.09451466,97000.0,96999.0,0.46145106]
[1732992709360,1.07699716,97000.0,96999.0,0.46145106]
[1732992711303,1.03164841,97000.0,96999.0,0.46145106]
[1732992711527,0.72558981,97000.0,96999.0,0.58775106]
[1732992711747,0.64311381,97000.0,96999.0,0.58775106]
[1732992711977,0.62249481,97000.0,96999.0,0.58775106]
[1732992712629,0.58125681,97000.0,96999.0,0.57875106]
[1732992712832,0.54001881,97000.0,96999.0,0.57175106]
[1732992713056,0.51939981,97000.0,96999.0,0.58975106]
[1732992713266,0.51939981,97000.0,96999.0,0.58075106]
[1732992713484,0.51939981,97000.0,96999.0,0.57175106]
[1732992713720,0.49878081,97000.0,96999.0,0.57175106]
[1732992713968,0.49878081,97000.0,96999.0,0.58075106]
[1732992713969,0.41630481,97000.0,96999.0,0.58075106]
[1732992715002,0.37506681,97000.0,96999.0,0.58975106]
[1732992715219,0.35444781,97000.0,96999.0,0.58075106]
[1732992715415,0.29151958,97000.0,96999.0,0.58075106]
[1732992715624,0.26797273,97000.0,96999.0,0.58975106]
[1732992715836,0.17221282,97000.0,96999.0,0.58075106]
[1732992716040,0.17221282,97000.0,96999.0,0.58975106]
[1732992716290,0.0762,97019.0,97018.0,0.263073]
[1732992716500,0.0762,97019.0,97018.0,0.39161701]
[1732992716934,0.00653409,97021.0,97019.0,0.286072]
[1732992717143,0.00653409,97021.0,97019.0,0.73485066]
[1732992717553,0.01247133,97020.0,97019.0,0.42285482]
[1732992718913,0.01247133,97020.0,97019.0,0.43185482]
[1732992719121,0.01247133,97020.0,97019.0,0.74372069]
[1732992719819,0.01247133,97020.0,97019.0,0.75272069]
[1732992720757,0.05797133,97020.0,97019.0,0.75272069]
[1732992720986,0.05797133,97020.0,97019.0,0.75271322]
[1732992721699,0.05797133,97020.0,97019.0,0.40961444]
[1732992722392,0.13537133,97020.0,97019.0,0.40961444]
[1732992724381,0.13537133,97020.0,97019.0,0.40061444]
[1732992724616,0.05797133,97020.0,97019.0,0.40961444]
[1732992724838,0.05797133,97020.0,97019.0,0.40061444]
[1732992725299,0.05797133,97020.0,97019.0,0.40961444]
[1732992725995,0.05797133,97020.0,97019.0,0.44081567]
[1732992727194,0.05883533,97020.0,97019.0,0.44081567]
[1732992729178,0.01333533,97020.0,97019.0,0.44081567]
[1732992729596,0.01333533,97020.0,97019.0,0.94192023]
[1732992732198,0.01333533,97020.0,97019.0,0.44081567]
[1732992732413,0.01333533,97020.0,97019.0,0.94192023]
[1732992732620,0.01333533,97020.0,97019.0,0.44081567]
[1732992737953,0.01333533,97020.0,97019.0,0.43181567]
[1732992738303,0.01333533,97020.0,97019.0,0.44081567]
[1732992740058,0.01333533,97020.0,97019.0,0.43181567]
[1732992740915,0.01333533,97020.0,97019.0,0.44081567]
[1732992741553,0.05983533,97020.0,97019.0,0.44081567]
[1732992745382,0.05983533,97020.0,97019.0,0.43181567]
[1732992745856,0.05983533,97020.0,97019.0,0.44081567]
[1732992746079,0.05983533,97020.0,97019.0,0.43181567]
[1732992746542,0.05983533,97020.0,97019.0,0.44081567]
[1732992747713,0.13793533,97020.0,97019.0,0.44081567]
[1732992752668,0.13793533,97020.0,97019.0,0.43081567]
[1732992752881,0.13793533,97020.0,97019.0,0.44081567]
[1732992755039,0.13793533,97020.0,97019.0,0.94192023]
[1732992755906,0.13793533,97020.0,97019.0,0.44081567]
[1732992760589,0.01333533,97020.0,97019.0,0.44081567]
[1732992763845,0.01333533,97020.0,97019.0,0.43081567]
[1732992764670,0.01333533,97020.0,97019.0,0.93154247]
[1732992764880,0.01333533,97020.0,97019.0,0.43081567]
[1732992786172,0.01333533,97020.0,97019.0,0.44081567]
[1732992803413,0.103036,97053.0,97025.0,0.023]
[1732992803631,0.103037,97052.0,97043.0,0.126047]
[1732992804126,0.103037,97053.0,97043.0,0.12831567]
[1732992804351,0.103034,97055.0,97043.0,0.12831567]
[1732992805026,0.103035,97054.0,97043.0,0.12831567]
[1732992805267,0.103035,97054.0,97043.0,0.13431567]
[1732992805479,0.103035,97054.0,97043.0,0.13348067]
[1732992806597,0.1409467,97044.0,97043.0,0.13348067]
[1732992806801,0.1409467,97044.0,97043.0,0.13748067]
[1732992807247,0.1418108,97044.0,97043.0,0.13748067]
[1732992807578,0.1418108,97044.0,97043.0,0.12748067]
[1732992809242,0.1418108,97044.0,97043.0,0.13849347]
[1732992811183,0.1418108,97044.0,97043.0,0.14049347]
[1732992811384,0.1418108,97044.0,97043.0,0.13849347]
[1732992812037,0.1418108,97044.0,97043.0,0.13949347]
[1732992812660,0.1418108,97044.0,97043.0,0.13849347]
[1732992814069,0.1418108,97044.0,97043.0,0.17972647]
[1732992819451,0.1418108,97044.0,97043.0,0.18145427]
[1732992821193,0.07738847,97044.0,97043.0,0.07924227]
[1732992827116,0.18043447,97044.0,97043.0,0.07924227]
[1732992827942,0.18043447,97044.0,97043.0,0.48673314]
[1732992828167,0.18043447,97044.0,97043.0,0.48892815]
[1732992828373,0.18043447,97044.0,97043.0,0.07916861]
[1732992831445,0.18043447,97044.0,97043.0,0.48650915]
[1732992831793,0.18043447,97044.0,97043.0,0.48887352]
[1732992832222,0.18043447,97044.0,97043.0,0.44764052]
[1732992833521,0.18043447,97044.0,97043.0,0.03810497]
[1732992838295,0.18043447,97044.0,97043.0,0.05350589]
[1732992839255,0.1530101,97044.0,97043.0,0.05350589]
[1732992841387,0.0499641,97044.0,97043.0,0.05350589]
[1732992841813,0.0499641,97044.0,97043.0,0.46279165]
[1732992842018,0.0008641,97044.0,97043.0,0.46279165]
[1732992842239,0.0008641,97044.0,97043.0,0.56583865]
[1732992843379,0.0008641,97044.0,97043.0,0.46279165]
[1732992844059,0.0008641,97044.0,97043.0,0.56581273]
[1732992845627,0.0008641,97044.0,97043.0,0.46276573]
[1732992846126,0.0472641,97044.0,97043.0,0.05350589]
[1732992846337,0.0472641,97044.0,97043.0,0.46276573]
[1732992846751,0.0472641,97044.0,97043.0,0.56581273]
[1732992847389,0.0472641,97044.0,97043.0,0.15655289]
[1732992847597,0.0472641,97044.0,97043.0,0.56581273]
[1732992847815,0.0472641,97044.0,97043.0,0.15655289]
[1732992849032,0.0008641,97044.0,97043.0,0.15655289]
[1732992849439,0.0008641,97044.0,97043.0,0.15655709]
[1732992850307,0.0008641,97047.0,97043.0,0.05351009]
[1732992850512,0.0008641,97047.0,97046.0,0.43229767]
[1732992850711,0.0008641,97047.0,97046.0,0.03840512]
[1732992850862,0.0008641,97047.0,97046.0,0.44997647]
[1732992851111,0.0008641,97047.0,97046.0,0.0406788]
[1732992851336,0.1039061,97047.0,97046.0,0.44997647]
[1732992851540,0.0008641,97047.0,97046.0,0.44997647]
[1732992851742,0.1039061,97047.0,97046.0,0.0406788]
[1732992852170,0.0008641,97047.0,97046.0,0.0406788]
[1732992852705,0.0008641,97047.0,97046.0,0.44997647]
[1732992853160,0.1039061,97047.0,97046.0,0.44997647]
[1732992853367,0.1039061,97047.0,97046.0,0.0406788]
[1732992854304,0.15020105,97047.0,97046.0,0.0406788]
[1732992854544,0.15020105,97047.0,97046.0,0.0176788]
[1732992854905,0.15020105,97047.0,97046.0,0.0406788]
[1732992856633,0.15020105,97047.0,97046.0,0.04069065]
[1732992856861,0.23320105,97047.0,97046.0,0.04069065]
[1732992857484,0.33604626,97047.0,97046.0,0.03841697]
[1732992857688,0.34604626,97047.0,97046.0,0.03841697]
[1732992857885,0.01,97046.0,97044.0,0.023]
[1732992858261,0.231644,97045.0,97044.0,0.023]
[1732992858456,0.231644,97045.0,97044.0,0.03841837]
[1732992858673,0.231644,97045.0,97044.0,0.023]
[1732992863296,0.231644,97045.0,97044.0,0.25403771]
[1732992863506,0.231644,97045.0,97044.0,0.023]
[1732992863744,0.231644,97045.0,97044.0,0.02527979]
[1732992863967,0.231644,97045.0,97044.0,0.023]
[1732992864271,0.231644,97045.0,97044.0,0.25402869]
[1732992864485,0.231644,97045.0,97044.0,0.02527979]
[1732992864680,0.231644,97045.0,97044.0,0.023]
[1732992865471,0.231644,97045.0,97044.0,0.0247278]
[1732992865882,0.231644,97045.0,97044.0,0.02700759]
[1732992869443,0.148644,97045.0,97044.0,0.02700759]
[1732992870273,0.148644,97045.0,97044.0,0.00400759]
[1732992870597,0.103044,97045.0,97044.0,0.00400759]
[1732992871175,0.01,97046.0,97040.0,0.27723498]
[1732992871391,0.103047,97043.0,97040.0,0.27723498]
[1732992871784,0.01,97046.0,97041.0,0.00219252]
[1732992871999,0.103046,97044.0,97041.0,0.00219252]
[1732992872209,0.103044,97045.0,97042.0,0.023]
[1732992872433,0.2169489,97047.0,97043.0,0.00219225]
[1732992872653,0.103044,97045.0,97044.0,0.023]
[1732992872875,0.12416185,97045.0,97044.0,0.02519211]
[1732992873786,0.02111785,97045.0,97044.0,0.25373811]
[1732992874470,0.02111785,97045.0,97044.0,0.26450617]
[1732992877764,0.02111785,97045.0,97044.0,0.26623397]
[1732992877998,0.02198175,97045.0,97044.0,0.14073397]
[1732992878440,0.02198175,97045.0,97044.0,0.18903397]
[1732992882500,0.02198175,97045.0,97044.0,0.27073397]
[1732992886597,0.02198175,97045.0,97044.0,0.27273397]
[1732992887056,0.02198175,97045.0,97044.0,0.27473397]
[1732992887933,0.02198175,97045.0,97044.0,0.14473397]
[1732992897388,0.02198175,97045.0,97044.0,0.22773397]
[1732992902382,0.0008639,97047.0,97046.0,0.103043]
[1732992902596,0.0008639,97047.0,97046.0,0.126043]
[1732992902788,0.02147852,97047.0,97046.0,0.12814177]
[1732992904347,0.02147852,97047.0,97046.0,0.13014177]
[1732992905036,0.0008639,97047.0,97046.0,0.13014177]
[1732992905904,0.0008639,97047.0,97046.0,0.17754177]
[1732992909773,0.0008639,97047.0,97046.0,0.51218698]
[1732992909999,0.17,97064.0,97046.0,0.51218698]
[1732992910000,0.03,97078.0,97064.0,0.382324]
[1732992910235,0.03,97078.0,97064.0,0.50816921]
[1732992910486,0.03,97078.0,97064.0,0.51026245]
[1732992910926,0.03,97078.0,97064.0,0.85275604]
[1732992911398,0.03,97078.0,97068.0,0.27602]
[1732992911609,0.00025965,97069.0,97068.0,0.37886521]
[1732992911819,0.00025965,97069.0,97068.0,0.38095164]
[1732992913584,0.00025965,97069.0,97068.0,0.38895164]
[1732992913795,0.00025965,97069.0,97068.0,0.38595164]
[1732992914221,0.00025965,97069.0,97068.0,0.38695164]
[1732992914468,0.00025965,97069.0,97068.0,0.39095164]
[1732992914935,0.00025965,97069.0,97068.0,0.39767603]
[1732992915144,0.00025965,97069.0,97068.0,0.39467603]
[1732992915324,0.00025965,97069.0,97068.0,0.39767603]
[1732992915528,0.00025965,97069.0,97068.0,0.39467603]
[1732992916333,0.00025965,97069.0,97068.0,0.39167603]
[1732992916737,0.00025965,97069.0,97068.0,0.39667603]
[1732992917169,0.00025965,97069.0,97068.0,0.39467603]
[1732992918039,0.00025965,97069.0,97068.0,0.39567603]
[1732992918269,0.00025965,97069.0,97068.0,0.39267603]
[1732992918497,0.00025965,97069.0,97068.0,0.18681082]
[1732992918740,0.00025965,97069.0,97068.0,0.01881082]
[1732992919140,0.00025965,97069.0,97068.0,0.01672439]
[1732992919356,0.00025965,97069.0,97068.0,0.29497195]
[1732992919582,0.00025965,97069.0,97068.0,0.01878979]
[1732992919814,0.00025965,97069.0,97068.0,0.01378979]
[1732992920059,0.00025965,97069.0,97068.0,0.03678979]
[1732992920919,0.00025965,97069.0,97068.0,0.03578979]
[1732992923743,0.10327865,97069.0,97068.0,0.03578979]
[1732992924006,0.00025965,97069.0,97068.0,0.03578979]
[1732992925111,0.00112335,97069.0,97068.0,0.03578979]
[1732992928680,0.10414235,97069.0,97068.0,0.03578979]
[1732992929104,0.00112335,97069.0,97068.0,0.03578979]
[1732992929933,0.00112335,97069.0,97068.0,0.13880979]
[1732992930144,0.00112335,97069.0,97068.0,0.03578979]
[1732992930788,0.10414235,97069.0,97068.0,0.03578979]
[1732992931009,0.00112335,97069.0,97068.0,0.03578979]
[1732992931668,0.00112335,97069.0,97068.0,0.13880979]
[1732992931876,0.00112335,97069.0,97068.0,0.03578979]
[1732992932290,0.00112335,97069.0,97068.0,0.13880979]
[1732992933404,0.00112335,97069.0,97068.0,0.41505576]
[1732992936422,0.00112335,97069.0,97068.0,0.13880979]
[1732992936842,0.00112335,97069.0,97068.0,0.03578979]
[1732992938413,0.10414235,97069.0,97068.0,0.03578979]
[1732992939053,0.00112335,97069.0,97068.0,0.03578979]
[1732992939265,0.10414235,97069.0,97068.0,0.03578979]
[1732992939487,0.07992335,97069.0,97068.0,0.03578979]
[1732992939904,0.18294235,97069.0,97068.0,0.03578979]
[1732992944515,0.18294235,97069.0,97068.0,0.31229755]
[1732992945176,0.00112335,97069.0,97068.0,0.31229755]
[1732992947524,0.00112335,97069.0,97068.0,0.03578979]
[1732992947974,0.00112335,97069.0,97068.0,0.03372439]
[1732992948202,0.00112335,97069.0,97068.0,0.03565803]
[1732992949268,0.00112335,97069.0,97068.0,0.13867803]
[1732992952170,0.00112335,97069.0,97068.0,0.03565803]
[1732992952382,0.00112335,97069.0,97068.0,0.44431041]
[1732992953018,0.00112335,97069.0,97068.0,0.03565803]
[1732992953226,0.10414235,97069.0,97068.0,0.03565803]
[1732992954110,0.10414235,97069.0,97068.0,0.02493364]
[1732992954855,0.18294235,97069.0,97068.0,0.02493364]
[1732992960079,0.10414235,97069.0,97068.0,0.02493364]
[1732992961213,0.10414235,97069.0,97068.0,0.43392482]
[1732992961874,0.10414235,97069.0,97068.0,0.02493364]
[1732992962301,0.10414235,97069.0,97068.0,0.43445637]
[1732992962790,0.10414235,97069.0,97068.0,0.02493364]
[1732992963467,0.10414235,97069.0,97068.0,0.43448875]
[1732992963710,0.00112335,97069.0,97066.0,0.023]
[1732992963936,0.00112335,97069.0,97065.0,0.0017274]
[1732992963937,0.10414235,97069.0,97068.0,0.02536466]
[1732992964177,0.10414235,97069.0,97068.0,0.023]
[1732992964388,0.10414235,97069.0,97068.0,0.43496861]
[1732992964608,0.10414235,97069.0,97068.0,0.02536466]
[1732992965061,0.00112335,97069.0,97066.0,0.023]
[1732992965296,0.103021,97067.0,97066.0,0.43269362]
[1732992965508,0.103021,97067.0,97066.0,0.023]
[1732992965719,0.103021,97067.0,97066.0,0.02515362]
[1732992965930,0.103021,97067.0,97066.0,0.023]
[1732992966835,0.103021,97067.0,97066.0,0.43479894]
[1732992967498,0.103021,97067.0,97066.0,0.02515362]
[1732992968149,0.178621,97067.0,97066.0,0.02515362]
[1732992969510,0.178621,97067.0,97066.0,0.023]
[1732992969715,0.178621,97067.0,97066.0,0.02515647]
[1732992972668,0.103021,97067.0,97066.0,0.02515647]
[1732992973765,0.00112335,97069.0,97066.0,0.02515647]
[1732992974003,0.103021,97067.0,97066.0,0.02515647]
[1732992974859,0.149921,97067.0,97066.0,0.02515647]
[1732992975185,0.103021,97067.0,97066.0,0.02515647]
[1732992977546,0.10302,97068.0,97066.0,0.02515647]
[1732992977764,0.00112335,97069.0,97066.0,0.02515647]
[1732992979403,0.00062335,97069.0,97066.0,0.02515647]
[1732992979829,0.00062335,97069.0,97068.0,0.023]
[1732992980261,0.00062335,97069.0,97068.0,0.02516214]
[1732992990290,0.00062335,97069.0,97068.0,0.25998214]
[1732992990749,0.00062335,97069.0,97068.0,0.40998214]
[1732992990962,0.02017601,97071.0,97070.0,0.126018]
[1732992991171,0.02017601,97071.0,97070.0,0.12817888]
[1732992992206,0.00025,97079.0,97071.0,0.023]
[1732992992425,0.00025,97079.0,97077.0,0.126011]
[1732992992874,0.00025,97079.0,97077.0,0.12817074]
[1732992993713,0.05180954,97078.0,97077.0,0.12817074]
[1732992996295,0.05180954,97078.0,97077.0,0.53688836]
[1732992998233,0.05180954,97078.0,97077.0,0.12817074]
[1732993001545,0.05180954,97078.0,97077.0,0.16939274]
[1732993001750,0.08813775,97090.0,97081.0,0.023]
[1732993001990,0.17,97091.0,97084.0,0.023]
[1732993002217,0.102997,97090.0,97084.0,0.023]
[1732993002420,0.102997,97090.0,97085.0,0.00215336]
[1732993002832,0.102997,97090.0,97086.0,0.023]
[1732993003079,0.102997,97090.0,97083.0,0.023]
[1732993003309,0.102997,97090.0,97087.0,0.023]
[1732993003521,0.17,97091.0,97087.0,0.023]
[1732993003743,0.102998,97089.0,97083.0,0.023]
[1732993003956,0.102998,97089.0,97088.0,0.00153219]
[1732993004166,0.02034065,97088.0,97087.0,0.23055152]
[1732993004373,0.1262,97086.0,97085.0,0.23056034]
[1732993004618,0.229201,97086.0,97085.0,0.23056034]
[1732993006390,0.103002,97085.0,97084.0,0.23056034]
[1732993007037,0.103002,97085.0,97076.0,0.103011]
[1732993007038,0.103003,97084.0,97078.0,0.023]
[1732993007845,0.1262,97086.0,97078.0,0.023]
[1732993007989,0.103005,97083.0,97078.0,0.023]
[1732993008195,0.103006,97082.0,97078.0,0.023]
[1732993008400,0.206005,97085.0,97078.0,0.023]
[1732993008604,0.103005,97083.0,97078.0,0.023]
[1732993009410,0.1262,97086.0,97078.0,0.023]
[1732993009411,0.103006,97082.0,97078.0,0.023]
[1732993011169,0.103006,97082.0,97079.0,0.00304193]
[1732993011356,0.103006,97082.0,97078.0,0.023]
[1732993011570,0.103006,97082.0,97079.0,0.00304193]
[1732993011783,0.103006,97082.0,97079.0,0.27664092]
[1732993011988,0.103006,97082.0,97080.0,0.00304168]
[1732993012864,0.103006,97082.0,97079.0,0.27664092]
[1732993013031,0.103006,97082.0,97081.0,0.00304142]
[1732993013234,0.103006,97082.0,97080.0,0.00304168]
[1732993013435,0.103006,97082.0,97081.0,0.00304142]
[1732993013877,0.103005,97082.0,97081.0,0.00304142]
[1732993014112,0.079,97086.0,97078.0,0.023]
[1732993014331,0.103007,97080.0,97079.0,0.00282469]
[1732993014539,0.103007,97080.0,97079.0,0.023]
[1732993014752,0.103007,97080.0,97077.0,0.041222]
[1732993014753,0.103006,97081.0,97078.0,0.023]
[1732993014989,0.206009,97083.0,97079.0,0.00282956]
[1732993015205,0.103007,97080.0,97079.0,0.023]
[1732993015405,0.103013,97075.0,97074.0,0.01172693]
[1732993015818,0.103013,97075.0,97074.0,0.00373707]
[1732993016263,0.103013,97075.0,97074.0,0.00090624]
[1732993016899,0.103013,97075.0,97074.0,0.00373707]
[1732993017104,0.103013,97075.0,97074.0,0.00090624]
[1732993017591,0.103013,97075.0,97074.0,0.00420888]